bitfinex/quotes_BTCUSD_20241117
["timestamp","ask_amount","ask_price","bid_price","bid_amount"]
[1731844337746,0.11015,90785.0,90777.0,0.11016]
[1731844337980,0.110152,90784.0,90778.0,0.14662842]
[1731844338204,0.0058557,90796.0,90778.0,0.03647142]
[1731844338437,0.110146,90789.0,90783.0,0.110151]
[1731844339127,0.110143,90791.0,90786.0,0.110148]
[1731844339335,0.220283,90792.0,90784.0,0.11015]
[1731844339589,0.220283,90792.0,90785.0,0.04171748]
[1731844339809,0.0008557,90796.0,90785.0,0.04171748]
[1731844340022,0.110168,90770.0,90769.0,0.0466]
[1731844340244,0.10906255,90791.0,90769.0,0.0466]
[1731844340471,0.10906255,90791.0,90770.0,0.0122]
[1731844340472,0.110167,90771.0,90770.0,0.0122]
[1731844340677,0.110167,90771.0,90761.0,0.220356]
[1731844340678,0.005,90779.0,90760.0,0.02150241]
[1731844340950,0.220322,90777.0,90761.0,0.00986128]
[1731844341153,0.0453,90781.0,90760.0,0.02150241]
[1731844341154,0.110164,90774.0,90762.0,0.220356]
[1731844341464,0.220309,90782.0,90763.0,0.0754]
[1731844341587,0.11016,90777.0,90772.0,0.110166]
[1731844341787,0.220309,90782.0,90763.0,0.07945352]
[1731844341788,0.220309,90782.0,90773.0,0.0330503]
[1731844342020,0.11016,90777.0,90773.0,0.00404377]
[1731844342269,0.005,90785.0,90773.0,0.00404377]
[1731844342512,0.110157,90780.0,90774.0,0.02243808]
[1731844342766,0.110161,90776.0,90774.0,0.02243808]
[1731844342974,0.10906255,90788.0,90774.0,0.02243808]
[1731844342975,0.110162,90775.0,90774.0,0.02243808]
[1731844343188,0.102162,90775.0,90774.0,0.02243808]
[1731844343403,0.102162,90775.0,90774.0,0.02647767]
[1731844343622,0.102162,90775.0,90774.0,0.02243808]
[1731844343877,0.220313,90780.0,90774.0,0.00403959]
[1731844344154,0.220313,90780.0,90769.0,0.220339]
[1731844344361,0.220305,90784.0,90774.0,0.110162]
[1731844344580,0.110159,90778.0,90775.0,0.0550838]
[1731844344837,0.110159,90778.0,90775.0,0.05913047]
[1731844345286,0.220305,90783.0,90775.0,0.05913047]
[1731844345512,0.11016,90777.0,90775.0,0.05913047]
[1731844345744,0.11016,90777.0,90776.0,0.03896345]
[1731844346227,0.005,90790.0,90768.0,0.220341]
[1731844346453,0.110156,90781.0,90770.0,0.220337]
[1731844346700,0.110159,90778.0,90771.0,0.0488995]
[1731844346919,0.110159,90778.0,90771.0,0.16311762]
[1731844347130,0.110157,90780.0,90772.0,0.06521096]
[1731844347338,0.110157,90780.0,90774.0,0.110163]
[1731844347555,0.220307,90782.0,90773.0,0.00404667]
[1731844347765,0.110162,90776.0,90775.0,0.00404516]
[1731844348039,0.110162,90776.0,90774.0,0.02277366]
[1731844348040,0.110162,90775.0,90774.0,0.02681894]
[1731844348251,0.110168,90770.0,90769.0,0.001711]
[1731844351534,0.21923055,90770.0,90769.0,0.001711]
[1731844351774,0.25223055,90770.0,90769.0,0.001711]
[1731844352681,0.39152295,90770.0,90769.0,0.001711]
[1731844352899,0.41147564,90770.0,90769.0,0.001711]
[1731844353110,0.49257564,90770.0,90769.0,0.001711]
[1731844353334,0.49457564,90770.0,90769.0,0.001711]
[1731844353546,0.48433055,90770.0,90769.0,0.001711]
[1731844356067,0.45433055,90770.0,90769.0,0.001711]
[1731844356295,0.31923055,90770.0,90769.0,0.001711]
[1731844356553,0.32423055,90770.0,90769.0,0.001711]
[1731844358178,0.31623055,90770.0,90769.0,0.001711]
[1731844362368,0.32645358,90770.0,90769.0,0.001711]
[1731844363448,0.31623055,90770.0,90769.0,0.001711]
[1731844365478,0.32645193,90770.0,90769.0,0.001711]
[1731844367225,0.220379,90753.0,90743.0,0.110201]
[1731844367506,0.110193,90750.0,90744.0,0.110199]
[1731844367742,0.110198,90745.0,90744.0,0.00406218]
[1731844368208,0.10906255,90759.0,90731.0,0.110215]
[1731844368209,0.110206,90739.0,90731.0,0.110215]
[1731844368665,0.110206,90739.0,90723.0,0.31925872]
[1731844368919,0.110206,90739.0,90726.0,0.1216169]
[1731844369177,0.110206,90739.0,90731.0,0.110214]
[1731844369628,0.110206,90739.0,90728.0,0.220438]
[1731844369852,0.110206,90739.0,90728.0,0.220437]
[1731844370304,0.110206,90739.0,90736.0,0.0796]
[1731844370529,0.110206,90739.0,90738.0,0.01478196]
[1731844373222,0.102206,90739.0,90738.0,0.01478196]
[1731844373453,0.102206,90739.0,90738.0,0.00165966]
[1731844382316,0.11244998,90739.0,90738.0,0.00165966]
[1731844384784,0.01024398,90739.0,90713.0,0.0479]
[1731844385004,0.08,90741.0,90714.0,0.03958307]
[1731844385223,0.110216,90731.0,90726.0,0.110221]
[1731844385432,0.110217,90730.0,90724.0,0.330671]
[1731844385680,0.110219,90728.0,90727.0,0.00360117]
[1731844385912,0.110219,90728.0,90727.0,0.00359698]
[1731844386375,0.110219,90728.0,90722.0,0.110226]
[1731844386874,0.110221,90727.0,90723.0,0.00360256]
[1731844387098,0.220429,90733.0,90723.0,0.03888483]
[1731844387539,0.110216,90731.0,90724.0,0.220448]
[1731844387764,0.220429,90733.0,90725.0,0.04819931]
[1731844388113,0.110219,90728.0,90725.0,0.00360396]
[1731844388360,0.10222,90727.0,90725.0,0.00360396]
[1731844388571,0.10222,90727.0,90725.0,0.03365465]
[1731844388799,0.110219,90728.0,90726.0,0.00359698]
[1731844389028,0.220429,90733.0,90726.0,0.00359698]
[1731844389029,0.220422,90736.0,90726.0,0.11381698]
[1731844389261,0.110217,90730.0,90727.0,0.0665579]
[1731844389507,0.23424522,90741.0,90727.0,0.0665579]
[1731844389508,0.110219,90728.0,90727.0,0.0665579]
[1731844389727,0.220436,90730.0,90722.0,0.110226]
[1731844389943,0.11022,90727.0,90722.0,0.110226]
[1731844390181,0.220409,90740.0,90723.0,0.0430027]
[1731844390400,0.220433,90731.0,90723.0,0.04520697]
[1731844390621,0.110216,90731.0,90724.0,0.110223]
[1731844390846,0.220427,90733.0,90725.0,0.0671346]
[1731844390847,0.110218,90729.0,90725.0,0.0671346]
[1731844391058,0.11022,90728.0,90725.0,0.0671346]
[1731844391273,0.110217,90730.0,90723.0,0.110225]
[1731844391482,0.110218,90729.0,90724.0,0.04078853]
[1731844392371,0.220431,90731.0,90724.0,0.04078853]
[1731844392995,0.110219,90728.0,90724.0,0.04078853]
[1731844394391,0.110204,90741.0,90735.0,0.11021]
[1731844394632,0.110203,90742.0,90736.0,0.110208]
[1731844394846,0.110203,90742.0,90737.0,0.0330631]
[1731844395515,0.1110598,90741.0,90737.0,0.0330631]
[1731844395974,0.0008558,90741.0,90737.0,0.0330631]
[1731844397063,0.0008558,90741.0,90740.0,0.110204]
[1731844397304,0.0008558,90741.0,90740.0,0.20268407]
[1731844397529,0.0008558,90741.0,90740.0,0.30161015]
[1731844397745,0.0008558,90741.0,90740.0,0.20268407]
[1731844397996,0.0008558,90741.0,90740.0,0.31395029]
[1731844398212,0.0008558,90741.0,90740.0,0.67700397]
[1731844398475,0.0008558,90741.0,90740.0,0.77700397]
[1731844398911,0.1652137,90758.0,90744.0,0.1102]
[1731844399164,0.1652137,90758.0,90744.0,0.6845199]
[1731844399398,0.1652137,90758.0,90744.0,0.7639199]
[1731844400278,0.1652137,90758.0,90744.0,0.57545735]
[1731844400279,0.110189,90753.0,90744.0,0.57545735]
[1731844400735,0.110182,90759.0,90744.0,0.57545735]
[1731844400974,0.110183,90758.0,90744.0,0.57545735]
[1731844401219,0.220358,90762.0,90744.0,0.57545735]
[1731844401467,0.110183,90758.0,90744.0,0.57545735]
[1731844402669,0.220347,90766.0,90744.0,0.6845199]
[1731844402893,0.110178,90762.0,90744.0,0.717583]
[1731844403326,0.1030338,90762.0,90746.0,0.220395]
[1731844403547,0.1030338,90762.0,90750.0,0.220385]
[1731844403761,0.220347,90766.0,90751.0,0.26436307]
[1731844403978,0.110181,90760.0,90754.0,0.110187]
[1731844404193,0.220354,90763.0,90751.0,0.26793509]
[1731844404408,0.220354,90763.0,90755.0,0.11374966]
[1731844404409,0.11018,90761.0,90755.0,0.11374966]
[1731844404640,0.220345,90767.0,90752.0,0.0383093]
[1731844404875,0.110184,90758.0,90756.0,0.00356366]
[1731844405087,0.220349,90765.0,90755.0,0.110186]
[1731844405300,0.220354,90763.0,90757.0,0.00355808]
[1731844405509,0.220354,90763.0,90756.0,0.04376347]
[1731844405758,0.110181,90760.0,90758.0,0.00356366]
[1731844405965,0.110181,90760.0,90759.0,0.0187007]
[1731844406184,0.110181,90760.0,90759.0,0.02225878]
[1731844407737,0.110181,90760.0,90759.0,0.00355808]
[1731844407954,0.0761,90768.0,90756.0,0.04019424]
[1731844408181,0.110183,90758.0,90756.0,0.04019424]
[1731844408404,0.110184,90757.0,90756.0,0.04019424]
[1731844408627,0.110182,90759.0,90756.0,0.04019424]
[1731844408854,0.110182,90759.0,90757.0,0.02936413]
[1731844409302,0.110183,90758.0,90757.0,0.02936413]
[1731844411562,0.110184,90757.0,90753.0,0.0330631]
[1731844411801,0.220363,90759.0,90753.0,0.0330631]
[1731844412027,0.110185,90756.0,90753.0,0.0330631]
[1731844412282,0.220366,90758.0,90743.0,0.19880539]
[1731844412500,0.0008562,90760.0,90744.0,0.22260374]
[1731844412501,0.110181,90759.0,90744.0,0.22260374]
[1731844412718,0.0008562,90760.0,90745.0,0.27960724]
[1731844412932,0.110187,90755.0,90746.0,0.110197]
[1731844413141,0.110188,90754.0,90748.0,0.110194]
[1731844413395,0.110188,90754.0,90749.0,0.110193]
[1731844413610,0.220363,90759.0,90750.0,0.110192]
[1731844413838,0.220363,90759.0,90748.0,0.06504052]
[1731844414050,0.110185,90757.0,90751.0,0.110191]
[1731844414272,0.110187,90755.0,90749.0,0.110193]
[1731844414494,0.110183,90758.0,90733.0,0.005]
[1731844414712,0.220366,90758.0,90750.0,0.110192]
[1731844415158,0.110189,90754.0,90746.0,0.110196]
[1731844415377,0.110189,90754.0,90747.0,0.13436099]
[1731844415604,0.110189,90754.0,90747.0,0.02416499]
[1731844416030,0.110189,90754.0,90749.0,0.110193]
[1731844417801,0.220366,90758.0,90747.0,0.02416499]
[1731844417802,0.110185,90756.0,90750.0,0.110192]
[1731844418009,0.220366,90758.0,90748.0,0.1545302]
[1731844418225,0.102189,90754.0,90751.0,0.0035295]
[1731844418512,0.102189,90754.0,90752.0,0.01822237]
[1731844418735,0.102189,90754.0,90752.0,0.00352531]
[1731844418948,0.102189,90754.0,90749.0,0.110193]
[1731844419165,0.102189,90754.0,90753.0,0.00352392]
[1731844419376,0.102189,90754.0,90749.0,0.110193]
[1731844420246,0.102189,90754.0,90750.0,0.0035281]
[1731844420462,0.102189,90754.0,90751.0,0.04043331]
[1731844420676,0.110187,90755.0,90751.0,0.04043331]
[1731844420907,0.110187,90755.0,90752.0,0.0036024]
[1731844422672,0.220366,90758.0,90752.0,0.0036024]
[1731844422883,0.110185,90756.0,90753.0,0.03058396]
[1731844423306,0.110187,90755.0,90753.0,0.03058396]
[1731844423542,0.110187,90755.0,90754.0,0.0036024]
[1731844424005,0.110186,90756.0,90754.0,0.0036024]
[1731844424433,0.110186,90755.0,90754.0,0.0036024]
[1731844425342,0.0008562,90760.0,90754.0,0.04429355]
[1731844425557,0.0008562,90760.0,90759.0,0.110181]
[1731844426030,0.0008562,90760.0,90759.0,0.22284821]
[1731844426933,0.0008562,90760.0,90759.0,0.32162847]
[1731844427160,0.0008562,90760.0,90759.0,0.22284821]
[1731844427387,0.0008562,90760.0,90759.0,0.29750953]
[1731844428516,0.0008562,90760.0,90759.0,0.34286074]
[1731844428757,0.0008562,90760.0,90759.0,0.36474061]
[1731844429440,0.0008562,90760.0,90759.0,0.51914061]
[1731844429661,0.1652137,90784.0,90774.0,0.159563]
[1731844429876,0.1652137,90784.0,90774.0,0.236763]
[1731844430097,0.0008555,90786.0,90774.0,0.236763]
[1731844430098,0.0008555,90786.0,90774.0,0.3424859]
[1731844430327,0.0008555,90786.0,90774.0,0.43898433]
[1731844430550,0.0008555,90786.0,90774.0,0.45434548]
[1731844430767,0.0008555,90786.0,90774.0,1.09060377]
[1731844430993,0.0008555,90786.0,90774.0,0.89320097]
[1731844431466,0.0008555,90786.0,90774.0,1.09031992]
[1731844431900,0.0008555,90786.0,90774.0,0.89307056]
[1731844432326,0.0008555,90786.0,90774.0,1.09525959]
[1731844432557,0.0008555,90786.0,90774.0,1.0952578]
[1731844432981,0.0008555,90786.0,90774.0,1.1192633]
[1731844433254,0.0074215,90800.0,90796.0,0.110137]
[1731844433488,0.0074215,90800.0,90799.0,0.110133]
[1731844433898,0.0074215,90800.0,90799.0,0.11366178]
[1731844435060,0.0074215,90800.0,90799.0,0.11586431]
[1731844435298,0.0074215,90800.0,90799.0,0.38106749]
[1731844435548,0.0074215,90800.0,90799.0,0.42299086]
[1731844436951,0.0074215,90800.0,90799.0,0.44497921]
[1731844440805,0.0074215,90800.0,90799.0,0.40085331]
[1731844441016,0.0074215,90800.0,90799.0,0.26980241]
[1731844441260,0.0074215,90800.0,90799.0,0.05966941]
[1731844441497,0.1175535,90800.0,90799.0,0.00352878]
[1731844441749,0.0074215,90800.0,90799.0,0.00352878]
[1731844441986,0.110134,90798.0,90793.0,0.11014]
[1731844442850,0.220269,90798.0,90791.0,0.04630991]
[1731844443062,0.110141,90793.0,90787.0,0.110146]
[1731844443280,0.110139,90795.0,90788.0,0.14759491]
[1731844443718,0.220266,90799.0,90788.0,0.14759491]
[1731844443950,0.220266,90799.0,90789.0,0.03721241]
[1731844443951,0.11014,90794.0,90789.0,0.03721241]
[1731844444404,0.11014,90793.0,90789.0,0.03721241]
[1731844444637,0.11014,90793.0,90790.0,0.03659115]
[1731844444844,0.110143,90791.0,90790.0,0.03659115]
[1731844445095,0.220281,90793.0,90781.0,0.24276002]
[1731844445320,0.0775,90792.0,90769.0,0.0496]
[1731844445531,0.110153,90783.0,90777.0,0.11016]
[1731844445744,0.220286,90791.0,90777.0,0.22032]
[1731844445954,0.220286,90791.0,90782.0,0.110153]
[1731844445955,0.110146,90789.0,90782.0,0.110153]
[1731844446177,0.0775,90792.0,90781.0,0.22031]
[1731844446419,0.0775,90792.0,90778.0,0.022032]
[1731844446642,0.0775,90792.0,90779.0,0.00220298]
[1731844446858,0.0766,90799.0,90779.0,0.00220298]
[1731844447102,0.0082771,90800.0,90779.0,0.00220298]
[1731844447103,0.0082771,90800.0,90799.0,0.110133]
[1731844447322,0.0082771,90800.0,90799.0,0.1211463]
[1731844447524,0.0082771,90800.0,90799.0,0.12441368]
[1731844448238,0.0002771,90800.0,90799.0,0.12441368]
[1731844449597,0.0002771,90800.0,90799.0,0.01428068]
[1731844450287,0.0002771,90800.0,90799.0,0.12441368]
[1731844450533,0.0002771,90800.0,90799.0,0.01428068]
[1731844452326,0.0002771,90800.0,90799.0,0.0110133]
[1731844452582,0.0002771,90800.0,90799.0,0.01428068]
[1731844453489,0.1104091,90800.0,90799.0,0.01428068]
[1731844453924,0.1104091,90800.0,90799.0,0.00326738]
[1731844454405,0.3481421,90800.0,90782.0,0.02235984]
[1731844454616,0.3481421,90800.0,90776.0,0.22032]
[1731844454617,0.220269,90798.0,90787.0,0.110147]
[1731844454842,0.110141,90793.0,90785.0,0.2203]
[1731844455086,0.110141,90792.0,90787.0,0.110147]
[1731844455333,0.110141,90792.0,90788.0,0.06727413]
[1731844455747,0.17330337,90800.0,90788.0,0.06727413]
[1731844456027,0.17330337,90800.0,90781.0,0.320309]
[1731844456028,0.110143,90791.0,90785.0,0.110149]
[1731844456451,0.110143,90791.0,90781.0,0.34206737]
[1731844456452,0.110143,90791.0,90786.0,0.110148]
[1731844456665,0.110143,90791.0,90787.0,0.04522154]
[1731844458054,0.110141,90793.0,90788.0,0.110146]
[1731844458266,0.01027115,90792.0,90789.0,0.110145]
[1731844458485,0.110139,90794.0,90790.0,0.03756715]
[1731844458701,0.110141,90793.0,90790.0,0.03756715]
[1731844458915,0.110143,90791.0,90790.0,0.03756715]
[1731844459572,0.110143,90791.0,90786.0,0.110148]
[1731844460252,0.110144,90790.0,90784.0,0.110151]
[1731844460467,0.110144,90790.0,90785.0,0.11015]
[1731844460686,0.22029,90790.0,90785.0,0.08259905]
[1731844460893,0.110151,90784.0,90777.0,0.100048]
[1731844461113,0.110151,90784.0,90780.0,0.1]
[1731844462244,0.220276,90795.0,90780.0,0.1]
[1731844462452,0.220292,90789.0,90780.0,0.110155]
[1731844462665,0.110151,90784.0,90781.0,0.0529288]
[1731844463390,0.110151,90784.0,90782.0,0.00330741]
[1731844463391,0.102151,90784.0,90782.0,0.00330741]
[1731844463626,0.102151,90784.0,90783.0,0.03867622]
[1731844463841,0.102151,90784.0,90783.0,0.04198224]
[1731844465353,0.110149,90786.0,90783.0,0.04198224]
[1731844465575,0.220293,90788.0,90783.0,0.04198224]
[1731844465805,0.0102691,90787.0,90784.0,0.01521862]
[1731844466018,0.11015,90785.0,90784.0,0.01521862]
[1731844466268,0.110149,90786.0,90784.0,0.01852881]
[1731844466509,0.110149,90786.0,90785.0,0.01673569]
[1731844466728,0.110145,90790.0,90785.0,0.12688469]
[1731844466965,0.10906255,90798.0,90785.0,0.12688469]
[1731844466966,0.01027208,90789.0,90786.0,0.03891831]
[1731844467193,0.110147,90787.0,90786.0,0.03891831]
[1731844467401,0.110147,90787.0,90786.0,0.0422285]
[1731844468895,0.12042635,90787.0,90786.0,0.00331019]
[1731844469333,0.12042635,90787.0,90783.0,0.03867622]
[1731844469543,0.110147,90787.0,90786.0,0.00330602]
[1731844469766,0.110147,90787.0,90783.0,0.03867622]
[1731844469767,0.12042943,90787.0,90783.0,0.03867622]
[1731844469995,0.12042943,90787.0,90786.0,0.00330602]
[1731844470225,0.110147,90787.0,90786.0,0.00330602]
[1731844470474,0.0102827,90787.0,90786.0,0.00330602]
[1731844470689,0.0102827,90787.0,90784.0,0.01505884]
[1731844470951,0.110147,90788.0,90786.0,0.00330602]
[1731844471163,0.12042965,90787.0,90785.0,0.04189834]
[1731844471384,0.01028283,90786.0,90785.0,0.03859093]
[1731844471593,0.220288,90790.0,90785.0,0.03859093]
[1731844471829,0.01028258,90789.0,90785.0,0.03859093]
[1731844472057,0.12042958,90788.0,90785.0,0.03859093]
[1731844472292,0.110147,90788.0,90786.0,0.0385825]
[1731844472711,0.220288,90790.0,90786.0,0.0385825]
[1731844472924,0.12042556,90789.0,90786.0,0.0385825]
[1731844473140,0.01028056,90788.0,90786.0,0.0385825]
[1731844473351,0.110145,90789.0,90787.0,0.03707567]
[1731844473571,0.110146,90788.0,90787.0,0.03707567]
[1731844473788,0.12042656,90788.0,90787.0,0.03707567]
[1731844474020,0.01028056,90788.0,90782.0,0.0017112]
[1731844474446,0.17330337,90800.0,90782.0,0.0017112]
[1731844474447,0.110152,90783.0,90782.0,0.0017112]
[1731844474709,0.12043256,90783.0,90782.0,0.02657369]
[1731844474916,0.12043256,90783.0,90782.0,0.0017112]
[1731844478267,0.11243256,90783.0,90782.0,0.0017112]
[1731844479199,0.26739511,90783.0,90782.0,0.0017112]
[1731844479420,0.34799511,90783.0,90782.0,0.0017112]
[1731844483853,0.19303256,90783.0,90782.0,0.0017112]
[1731844486333,0.11243256,90783.0,90782.0,0.0017112]
[1731844489228,0.13297573,90783.0,90782.0,0.00486957]
[1731844489442,0.13297573,90783.0,90782.0,0.0017112]
[1731844489648,0.13297699,90783.0,90782.0,0.0017112]
[1731844491013,0.14941389,90783.0,90782.0,0.0017112]
[1731844491230,0.14940636,90783.0,90782.0,0.0017112]
[1731844491895,0.14940758,90783.0,90782.0,0.0017112]
[1731844492117,0.14940755,90783.0,90782.0,0.0017112]
[1731844493226,0.14140755,90783.0,90782.0,0.0017112]
[1731844493667,0.14226325,90783.0,90782.0,0.0017112]
[1731844498186,0.04811125,90783.0,90782.0,0.0017112]
[1731844498403,0.01112875,90783.0,90782.0,0.01209203]
[1731844499037,0.01112875,90783.0,90782.0,0.01529368]
[1731844499261,0.01112875,90783.0,90782.0,0.12544668]
[1731844500149,0.1110077,90783.0,90782.0,0.01529368]
[1731844500381,0.12128827,90783.0,90782.0,0.01529368]
[1731844500600,0.12128827,90783.0,90782.0,0.00491285]
[1731844500812,0.12128827,90783.0,90782.0,0.0017112]
[1731844501242,0.0008557,90783.0,90782.0,0.00491481]
[1731844501465,0.01114024,90783.0,90782.0,0.00491481]
[1731844501745,0.1110077,90783.0,90782.0,0.0186518]
[1731844501925,0.12129262,90783.0,90782.0,0.00491481]
[1731844502383,0.12129262,90783.0,90782.0,0.0017112]
[1731844503647,0.12129262,90783.0,90782.0,0.00491481]
[1731844503862,0.01114062,90783.0,90782.0,0.02533921]
[1731844504083,0.01114062,90783.0,90782.0,0.02854282]
[1731844504295,0.01114472,90783.0,90782.0,0.02533921]
[1731844504509,0.01114472,90783.0,90782.0,0.02853903]
[1731844505137,0.12129672,90783.0,90782.0,0.02853903]
[1731844505569,0.01114472,90783.0,90782.0,0.02853903]
[1731844505781,0.01114472,90783.0,90782.0,0.13869203]
[1731844506651,0.0008557,90783.0,90782.0,0.31740021]
[1731844506865,0.0008557,90783.0,90782.0,0.21849203]
[1731844507077,0.0008557,90783.0,90782.0,0.78296577]
[1731844507284,0.0008557,90783.0,90782.0,0.78076288]
[1731844507500,0.0008557,90783.0,90782.0,0.63240061]
[1731844507719,0.0008557,90783.0,90782.0,0.83021697]
[1731844507966,0.0008557,90783.0,90782.0,0.63240061]
[1731844508204,0.220259,90802.0,90782.0,0.82912652]
[1731844508205,0.1041215,90800.0,90782.0,0.82912652]
[1731844508418,0.1041215,90800.0,90792.0,0.220282]
[1731844508419,0.1652137,90797.0,90792.0,0.220282]
[1731844508630,0.1041215,90800.0,90794.0,0.110138]
[1731844508840,0.1041215,90800.0,90795.0,0.110137]
[1731844509102,0.220259,90802.0,90796.0,0.02362801]
[1731844509337,0.110133,90800.0,90796.0,0.02362801]
[1731844509561,0.220259,90802.0,90797.0,0.00324913]
[1731844509766,0.110133,90799.0,90797.0,0.00324913]
[1731844509970,0.110133,90799.0,90798.0,0.01370151]
[1731844510412,0.110133,90799.0,90798.0,0.01694925]
[1731844510627,0.110133,90799.0,90798.0,0.00324774]
[1731844511071,0.110141,90793.0,90787.0,0.110147]
[1731844511281,0.110141,90793.0,90788.0,0.09498685]
[1731844511511,0.110141,90793.0,90788.0,0.09824839]
[1731844511980,0.110145,90789.0,90788.0,0.00326154]
[1731844512439,0.110152,90783.0,90782.0,0.0017112]
[1731844513111,0.0819,90791.0,90782.0,0.0017112]
[1731844513359,0.110151,90785.0,90782.0,0.00495674]
[1731844513570,0.110151,90785.0,90783.0,0.05827997]
[1731844513814,0.110151,90785.0,90783.0,0.0615269]
[1731844514238,0.110151,90784.0,90783.0,0.0615269]
[1731844518221,0.110151,90784.0,90783.0,0.00324693]
[1731844518430,0.12043602,90784.0,90783.0,0.00324693]
[1731844518682,0.20313602,90784.0,90783.0,0.00324693]
[1731844518895,0.192852,90783.0,90782.0,0.0017112]
[1731844519119,0.30191455,90783.0,90782.0,0.0017112]
[1731844519343,0.31219957,90783.0,90782.0,0.0017112]
[1731844519795,0.39489957,90783.0,90782.0,0.0017112]
[1731844520251,0.49489957,90783.0,90782.0,0.0017112]
[1731844522025,0.49689957,90783.0,90782.0,0.0017112]
[1731844522233,0.49489957,90783.0,90782.0,0.0017112]
[1731844522462,0.49689957,90783.0,90782.0,0.0017112]
[1731844522677,0.4968857,90783.0,90782.0,0.0017112]
[1731844523352,0.4888857,90783.0,90782.0,0.0017112]
[1731844523596,0.4868857,90783.0,90782.0,0.0017112]
[1731844525193,0.45835914,90783.0,90782.0,0.0017112]
[1731844525406,0.29959659,90783.0,90782.0,0.0017112]
[1731844528105,0.19459659,90783.0,90782.0,0.0017112]
[1731844528768,0.19545229,90783.0,90782.0,0.0017112]
[1731844529456,0.19545229,90783.0,90760.0,0.078]
[1731844529457,0.01112685,90783.0,90760.0,0.078]
[1731844529753,0.01112992,90783.0,90763.0,0.110175]
[1731844529957,0.220326,90775.0,90761.0,0.03798191]
[1731844530181,0.220326,90775.0,90765.0,0.110174]
[1731844530182,0.110167,90772.0,90765.0,0.110174]
[1731844530639,0.110167,90771.0,90766.0,0.00334727]
[1731844531090,0.110169,90769.0,90766.0,0.00334727]
[1731844531298,0.11017,90769.0,90767.0,0.05648594]
[1731844531516,0.11017,90769.0,90767.0,0.05983269]
[1731844531743,0.110167,90771.0,90768.0,0.02128058]
[1731844532493,0.110169,90769.0,90768.0,0.02128058]
[1731844532706,0.220334,90771.0,90763.0,0.110176]
[1731844533351,0.110171,90768.0,90763.0,0.110176]
[1731844533641,0.01027563,90773.0,90760.0,0.078]
[1731844533855,0.110173,90766.0,90760.0,0.078]
[1731844534061,0.110173,90766.0,90761.0,0.110179]
[1731844534266,0.01027563,90769.0,90760.0,0.078]
[1731844534534,0.110175,90765.0,90760.0,0.188179]
[1731844534739,0.01027563,90769.0,90761.0,0.03917226]
[1731844534956,0.110174,90766.0,90760.0,0.078]
[1731844535170,0.110174,90766.0,90760.0,0.18818]
[1731844536268,0.220342,90768.0,90760.0,0.18818]
[1731844536477,0.04931739,90781.0,90760.0,0.0744246]
[1731844536478,0.110179,90761.0,90760.0,0.0744246]
[1731844536711,0.0102774,90767.0,90757.0,0.0017118]
[1731844536916,0.220351,90764.0,90757.0,0.0017118]
[1731844537124,0.220354,90763.0,90758.0,0.02379998]
[1731844537348,0.110181,90759.0,90758.0,0.02379998]
[1731844538168,0.102181,90759.0,90758.0,0.02379998]
[1731844538307,0.102181,90759.0,90758.0,0.02716306]
[1731844538520,0.102181,90759.0,90758.0,0.02379998]
[1731844539331,0.11018,90761.0,90758.0,0.02379998]
[1731844539539,0.11018,90760.0,90759.0,0.02021298]
[1731844539742,0.11018,90760.0,90759.0,0.02359852]
[1731844539968,0.11018,90760.0,90759.0,0.00338554]
[1731844540429,0.220357,90762.0,90758.0,0.02379998]
[1731844540430,0.110181,90759.0,90758.0,0.02379998]
[1731844542570,0.110183,90758.0,90757.0,0.0017118]
[1731844543009,0.110183,90758.0,90757.0,0.0050986]
[1731844543226,0.110183,90758.0,90757.0,0.0017118]
[1731844543433,0.110183,90758.0,90757.0,0.0050986]
[1731844543633,0.110183,90758.0,90757.0,0.0017118]
[1731844543851,0.110183,90758.0,90757.0,0.0050986]
[1731844544079,0.01643998,90773.0,90757.0,0.01703193]
[1731844544277,0.01643998,90772.0,90757.0,0.02041873]
[1731844544518,0.0473516,90771.0,90757.0,0.02041873]
[1731844544713,0.03705772,90770.0,90759.0,0.110181]
[1731844544928,0.02676409,90769.0,90760.0,0.220361]
[1731844545135,0.0473516,90768.0,90762.0,0.110177]
[1731844545351,0.0473516,90767.0,90761.0,0.04846815]
[1731844545551,0.0473516,90766.0,90763.0,0.00339237]
[1731844545760,0.0473516,90766.0,90762.0,0.15610917]
[1731844545761,0.0473516,90765.0,90762.0,0.04593217]
[1731844545992,0.03088139,90764.0,90763.0,0.0378188]
[1731844546215,0.03088139,90764.0,90761.0,0.110179]
[1731844546506,0.01029388,90763.0,90761.0,0.110179]
[1731844546715,0.04944455,90777.0,90762.0,0.14560405]
[1731844546938,0.12801514,90778.0,90762.0,0.14560405]
[1731844546939,0.080346,90776.0,90762.0,0.03542605]
[1731844547145,0.12801514,90778.0,90757.0,0.0017118]
[1731844547146,0.080346,90775.0,90760.0,0.110179]
[1731844547353,0.080346,90774.0,90757.0,0.0017118]
[1731844547577,0.080346,90773.0,90761.0,0.110178]
[1731844547827,0.12801514,90778.0,90759.0,0.220363]
[1731844547828,0.080346,90772.0,90759.0,0.220363]
[1731844548031,0.080346,90771.0,90762.0,0.110177]
[1731844548158,0.080346,90770.0,90763.0,0.110176]
[1731844548363,0.080346,90770.0,90761.0,0.220358]
[1731844548364,0.080346,90769.0,90764.0,0.110175]
[1731844548561,0.080346,90768.0,90765.0,0.04689864]
[1731844548775,0.080346,90767.0,90765.0,0.04689864]
[1731844549094,0.0825,90778.0,90762.0,0.220356]
[1731844549095,0.0825,90778.0,90766.0,0.05008364]
[1731844549304,0.08041614,90777.0,90767.0,0.110172]
[1731844549457,0.08041614,90776.0,90766.0,0.05008364]
[1731844549661,0.04742508,90775.0,90767.0,0.02836585]
[1731844549865,0.02680567,90774.0,90767.0,0.02836585]
[1731844550081,0.03092928,90773.0,90768.0,0.01958417]
[1731844550291,0.0825,90778.0,90768.0,0.01958417]
[1731844550292,0.04742508,90772.0,90768.0,0.01958417]
[1731844550506,0.0825,90778.0,90768.0,0.01958417]
[1731844550507,0.04742508,90771.0,90768.0,0.01958417]
[1731844550714,0.04742508,90770.0,90769.0,0.01321881]
[1731844552472,0.04742508,90770.0,90769.0,0.12338781]
[1731844552907,0.04742508,90770.0,90769.0,0.01321881]
[1731844553098,0.04742508,90770.0,90769.0,0.12338781]
[1731844553099,0.03942508,90770.0,90769.0,0.12338781]
[1731844553349,0.01880567,90770.0,90769.0,0.12678661]